bitfinex/quotes_SOLUSD_20241209
["timestamp","ask_amount","ask_price","bid_price","bid_amount"]
[1733725121960,6.3296,232.04,231.97,0.64648603]
[1733725122160,6.3296,232.04,231.94,0.64647439]
[1733725122161,0.48902807,232.03,231.94,0.64647439]
[1733725122397,0.48902807,232.03,231.88,0.64657278]
[1733725122558,0.48902807,232.03,231.89,23.902374]
[1733725122763,6.3296,232.04,231.92,0.12549]
[1733725122965,6.3296,232.04,231.93,23.902374]
[1733725123165,6.3296,232.04,231.94,0.64645774]
[1733725123473,6.3296,232.04,231.95,23.776884]
[1733725123669,6.3296,232.04,231.96,0.64645507]
[1733725124081,6.3296,232.04,231.96,20.64645507]
[1733725125681,6.3296,232.04,231.97,23.776884]
[1733725125875,6.3296,232.04,231.98,0.64640088]
[1733725126491,1.5596,232.06,231.99,23.902374]
[1733725126792,1.5596,232.06,232.0,0.64633073]
[1733725126993,1.5596,232.06,232.02,20.0]
[1733725128994,6.472,232.1,232.03,0.64634285]
[1733725129194,6.472,232.1,232.04,23.902374]
[1733725129396,6.472,232.1,232.05,0.64618705]
[1733725129707,1.5081,232.12,232.05,0.64618705]
[1733725129708,1.5081,232.12,232.07,20.0]
[1733725130370,6.3649,232.15,232.08,0.64618405]
[1733725131696,6.3649,232.15,232.09,23.902374]
[1733725131907,6.3649,232.15,232.1,0.64605942]
[1733725133082,6.3649,232.15,232.02,20.64609588]
[1733725133286,0.48902807,232.14,232.03,0.12549]
[1733725134404,0.48902807,232.14,232.0,0.25098]
[1733725134608,0.12549,232.13,231.99,0.64627211]
[1733725135281,0.12549,232.13,232.0,0.64633076]
[1733725135815,1.5789,232.12,231.96,0.64636096]
[1733725135984,0.48902807,232.11,231.97,0.12549]
[1733725136517,0.48902807,232.11,231.96,0.64636096]
[1733725136682,0.48902807,232.11,231.92,0.64642006]
[1733725136877,0.48902807,232.11,231.93,0.25098]
[1733725137100,0.48902807,232.11,231.95,0.12549]
[1733725137311,0.48902807,232.11,231.96,0.64640725]
[1733725138284,0.48902807,232.11,231.97,0.12549]
[1733725138680,0.48902807,232.11,231.99,20.0]
[1733725138881,6.2276,232.1,231.99,20.0]
[1733725139097,0.48902807,232.09,231.99,20.0]
[1733725140582,0.48902807,232.09,231.92,0.12549]
[1733725140780,0.48902807,232.09,231.94,0.12549]
[1733725140988,0.48902807,232.09,231.95,0.64646957]
[1733725141915,0.48902807,232.09,231.96,23.776884]
[1733725142111,0.48902807,232.09,231.97,0.64646994]
[1733725143986,6.2276,232.1,231.99,20.0]
[1733725144223,6.2276,232.1,232.01,23.776884]
[1733725144514,6.2276,232.1,232.02,0.64627712]
[1733725145586,6.2276,232.1,232.03,23.776884]
[1733725145807,6.2276,232.1,232.04,0.64622848]
[1733725147414,1.5789,232.12,232.05,23.776884]
[1733725147590,6.0681,232.15,232.08,20.0]
[1733725148788,0.48902807,232.14,232.05,23.776884]
[1733725149288,0.48902807,232.14,232.0,0.6461519]
[1733725149289,6.0681,232.15,232.04,20.0]
[1733725149514,6.0681,232.15,232.06,0.12549]
[1733725149718,6.0681,232.15,232.07,0.64614404]
[1733725150214,6.0681,232.15,232.05,23.776884]
[1733725150418,0.48902807,232.14,232.02,20.0]
[1733725150599,0.48902807,232.14,232.04,23.776884]
[1733725151395,0.48902807,232.14,232.01,0.6462696]
[1733725152118,1.5081,232.12,231.98,0.64631342]
[1733725152320,0.48902807,232.11,231.98,0.64631342]
[1733725152905,6.3399,232.1,231.95,0.64637283]
[1733725153207,0.48902807,232.09,231.93,16.06977562]
[1733725153520,6.3399,232.1,231.97,0.12549]
[1733725153817,6.3399,232.1,231.98,0.64634699]
[1733725153818,0.48902807,232.09,231.98,0.64634699]
[1733725154034,0.48902807,232.09,231.91,0.64644388]
[1733725154396,0.48902807,232.09,231.92,0.12549]
[1733725154720,0.48902807,232.09,231.93,0.64647578]
[1733725155509,0.48902807,232.09,231.95,0.12549]
[1733725156100,0.48902807,232.09,231.97,20.0]
[1733725157226,1.5972,232.06,231.94,24.42338224]
[1733725157391,1.5972,232.06,231.94,23.776884]
[1733725157392,0.48902807,232.05,231.94,23.776884]
[1733725158497,0.48902807,232.05,231.89,0.64649477]
[1733725158701,6.4228,232.04,231.93,20.0]
[1733725158929,0.48902807,232.03,231.93,20.0]
[1733725159426,0.48902807,232.03,231.89,0.64649477]
[1733725159927,0.48902807,232.03,231.84,0.64665594]
[1733725160418,1.5295,232.02,231.85,0.12549]
[1733725160617,0.48902807,232.01,231.86,0.64667272]
[1733725160934,0.48902807,232.01,231.87,23.776884]
[1733725161140,0.48902807,232.01,231.9,20.0]
[1733725163113,0.48902807,232.01,231.89,23.776884]
[1733725164824,20.48902807,232.01,231.88,0.64667094]
[1733725165408,20.48902807,232.01,231.83,20.64671956]
[1733725165926,20.48902807,232.01,231.84,24.027864]
[1733725166122,0.48902807,232.01,231.89,20.0]
[1733725166321,0.48902807,232.01,231.9,0.64663866]
[1733725166712,1.5295,232.02,231.91,23.776884]
[1733725167031,1.5295,232.02,231.9,0.64663866]
[1733725167032,1.5295,232.02,231.92,0.64656449]
[1733725167628,0.48902807,232.01,231.92,0.64656449]
[1733725167812,0.48902807,232.01,231.91,23.776884]
[1733725168335,0.12549,232.0,231.9,0.6466177]
[1733725168635,6.5604,231.99,231.87,23.776884]
[1733725168800,0.48902807,231.98,231.88,0.64671591]
[1733725169558,0.48902807,231.98,231.76,92.2]
[1733725169559,1.6282,231.97,231.84,0.64671071]
[1733725169735,0.48902807,231.96,231.78,0.64683499]
[1733725170030,6.5595,231.95,231.79,0.12549]
[1733725170235,0.48902807,231.94,231.8,0.64686317]
[1733725170738,1.5156,231.93,231.8,0.64686317]
[1733725171027,0.48902807,231.92,231.73,0.64691587]
[1733725171334,1.5156,231.93,231.74,16.06977562]
[1733725171511,1.5156,231.93,231.77,0.25098]
[1733725171839,0.48902807,231.92,231.79,0.25098]
[1733725172029,2.00462807,231.93,231.81,0.12549]
[1733725172203,2.00462807,231.93,231.83,23.776884]
[1733725173067,1.5156,231.93,231.83,23.776884]
[1733725173737,0.48902807,231.92,231.79,0.12549]
[1733725173948,0.48902807,231.92,231.79,23.902374]
[1733725174126,20.48902807,231.92,231.79,23.902374]
[1733725174432,20.48902807,231.92,231.79,23.776884]
[1733725175544,6.1729,231.91,231.78,20.0]
[1733725175838,0.48902807,231.9,231.78,20.0]
[1733725177533,1.6656,231.89,231.78,20.0]
[1733725177737,0.48902807,231.88,231.78,20.0]
[1733725178926,1.6656,231.89,231.79,24.42388714]
[1733725180741,1.6656,231.89,231.81,0.12549]
[1733725180950,1.6656,231.89,231.82,23.776884]
[1733725181245,1.6656,231.89,231.83,0.64683881]
[1733725181631,1.6656,231.89,231.85,20.0]
[1733725183628,1.6656,231.89,231.82,23.776884]
[1733725184627,1.6656,231.89,231.83,0.64685151]
[1733725185232,1.6656,231.89,231.82,23.776884]
[1733725186750,1.6656,231.89,231.83,0.64684469]
[1733725188255,6.1729,231.91,231.85,20.0]
[1733725188450,6.1729,231.91,231.82,23.776884]
[1733725188623,6.1729,231.91,231.76,0.64683364]
[1733725188956,0.48902807,231.9,231.78,23.776884]
[1733725189159,0.48902807,231.9,231.78,24.42383529]
[1733725189752,6.1729,231.91,231.78,24.42383529]
[1733725189753,6.1729,231.91,231.79,0.12549]
[1733725189955,6.1729,231.91,231.81,24.027864]
[1733725190266,6.1729,231.91,231.83,23.776884]
[1733725190572,6.1729,231.91,231.84,0.64677767]
[1733725191428,6.1729,231.91,231.83,23.776884]
[1733725191763,6.1729,231.91,231.84,0.64681147]
[1733725192552,6.1729,231.91,231.83,23.776884]
[1733725192860,6.1729,231.91,231.84,0.64680969]
[1733725196773,2.09282807,231.9,231.75,0.64680987]
[1733725197980,2.09282807,231.9,231.7,1.6034]
[1733725197981,2.09282807,231.9,231.72,0.12549]
[1733725198181,2.09282807,231.9,231.75,0.12549]
[1733725198370,2.09282807,231.9,231.76,23.776884]
[1733725199382,2.09282807,231.9,231.77,0.64701478]
[1733725200087,6.4963,231.89,231.72,23.902374]
[1733725200256,0.48902807,231.88,231.75,20.0]
[1733725200960,0.48902807,231.88,231.76,0.6470433]
[1733725202384,6.4963,231.89,231.77,24.153354]
[1733725202570,6.4963,231.89,231.79,23.776884]
[1733725202753,6.4963,231.89,231.8,0.64691773]
[1733725205966,6.4963,231.89,231.79,23.776884]
[1733725206159,0.48902807,231.88,231.77,0.77240637]
[1733725206359,0.48902807,231.88,231.76,23.902374]
[1733725206594,0.48902807,231.88,231.76,23.776884]
[1733725207390,0.48902807,231.88,231.69,0.64704047]
[1733725208113,1.5813,231.87,231.72,0.25098]
[1733725208309,0.48902807,231.86,231.73,0.64707767]
[1733725208994,0.48902807,231.86,231.74,23.776884]
[1733725209195,0.48902807,231.86,231.73,23.776884]
[1733725210101,6.6464,231.85,231.73,23.776884]
[1733725210384,0.48902807,231.84,231.73,23.776884]
[1733725210987,1.5039,231.83,231.73,23.776884]
[1733725211190,0.48902807,231.82,231.69,0.64715135]
[1733725211589,0.48902807,231.82,231.67,0.12549]
[1733725211914,0.48902807,231.82,231.69,0.12549]
[1733725212115,0.48902807,231.82,231.7,0.64719816]
[1733725213145,0.48902807,231.82,231.68,0.25098]
[1733725213420,0.48902807,231.82,231.69,0.64719786]
[1733725213615,6.2161,231.81,231.7,23.776884]
[1733725213920,0.48902807,231.8,231.7,23.776884]
[1733725214128,1.6491,231.79,231.64,1.15306562]
[1733725214929,1.6491,231.79,231.65,16.34375401]
[1733725215140,1.6491,231.79,231.67,0.25098]
[1733725215327,1.6491,231.79,231.7,0.12549]
[1733725215531,1.6491,231.79,231.72,0.12549]
[1733725215837,1.6491,231.79,231.74,0.12549]
[1733725216003,1.6491,231.79,231.75,23.776884]
[1733725216205,1.6491,231.79,231.76,0.64698087]
[1733725216408,1.6491,231.79,231.77,23.776884]
[1733725216721,1.6491,231.79,231.69,20.64700872]
[1733725216918,1.6491,231.79,231.7,23.776884]
[1733725217114,1.6491,231.79,231.72,23.776884]
[1733725217332,1.6491,231.79,231.74,23.776884]
[1733725217518,1.6491,231.79,231.76,23.776884]
[1733725218539,6.2161,231.81,231.78,23.776884]
[1733725220842,6.2161,231.81,231.78,23.776884]
[1733725221041,6.2161,231.81,231.72,0.12549]
[1733725221342,6.2161,231.81,231.72,23.776884]
[1733725222444,6.2161,231.81,231.74,23.776884]
[1733725225010,0.48902807,231.8,231.74,23.776884]
[1733725225232,0.48902807,231.8,231.67,23.902374]
[1733725225436,0.48902807,231.8,231.67,0.12549]
[1733725225682,1.6597,231.79,231.66,0.64711827]
[1733725225948,0.48902807,231.78,231.66,0.64711827]
[1733725226933,0.48902807,231.78,231.67,23.776884]
[1733725227134,0.48902807,231.78,231.69,23.776884]
[1733725227813,1.6597,231.79,231.71,23.776884]
[1733725228018,1.6597,231.79,231.73,23.776884]
[1733725228819,1.6597,231.79,231.75,23.776884]
[1733725230720,1.6597,231.79,231.76,0.64705435]
[1733725230960,6.2161,231.81,231.77,23.776884]
[1733725231535,6.2161,231.81,231.72,23.776884]
[1733725231835,6.2161,231.81,231.69,20.0]
[1733725231836,6.2161,231.81,231.74,23.776884]
[1733725232629,6.2161,231.81,231.74,24.42395848]
[1733725233750,6.2161,231.81,231.75,0.64699106]
[1733725233961,1.642,231.84,231.76,0.25098]
[1733725234127,1.642,231.84,231.78,23.776884]
[1733725234327,1.642,231.84,231.8,23.776884]
[1733725235160,0.95915619,231.84,231.8,23.776884]
[1733725236064,6.3099,231.86,231.8,23.776884]
[1733725241136,6.3099,231.86,231.82,23.776884]
[1733725241336,6.3981,231.91,231.84,23.776884]
[1733725241529,6.3981,231.91,231.86,23.776884]
[1733725241728,6.3981,231.91,231.88,23.776884]
[1733725241925,1.5986,231.93,231.88,23.776884]
[1733725241926,1.5986,231.93,231.9,23.776884]
[1733725242240,6.3981,231.97,231.92,23.776884]
[1733725242445,6.3981,231.97,231.93,0.64661605]
[1733725242763,6.3981,231.97,231.94,23.776884]
[1733725243847,6.3981,231.97,231.95,0.6465616]
[1733725245656,1.5986,232.0,231.95,0.6465616]
[1733725246052,6.2965,232.02,231.96,23.776884]
[1733725246272,6.2965,232.02,231.92,20.0]
[1733725246473,6.2965,232.02,231.93,24.42343346]
[1733725246679,0.48902807,232.01,231.93,24.42343346]
[1733725246850,6.2965,232.02,231.93,24.42343346]
[1733725248578,1.5573,232.06,231.93,24.42343346]
[1733725248579,1.5573,232.06,231.97,23.776884]
[1733725248877,1.5573,232.06,231.99,23.776884]
[1733725249953,1.5573,232.06,231.96,20.0]
[1733725249954,1.5573,232.06,232.01,23.776884]
[1733725250569,6.4456,232.08,232.03,23.776884]
[1733725251369,6.4456,232.08,232.04,0.64627132]
[1733725251880,1.5258,232.12,232.05,23.776884]
[1733725252088,1.5258,232.12,232.0,0.12549]
[1733725252263,1.5258,232.12,232.02,23.776884]
[1733725253289,0.48902807,232.11,232.0,23.776884]
[1733725253456,0.48902807,232.11,232.01,0.64634813]
[1733725253663,0.48902807,232.11,232.02,23.776884]
[1733725254268,0.48902807,232.14,232.02,23.776884]
[1733725254587,0.48902807,232.14,232.03,20.0]
[1733725254769,0.48902807,232.14,232.04,23.776884]
[1733725255802,6.2473,232.15,232.05,0.64625385]
[1733725257054,0.48902807,232.14,232.05,0.64625385]
[1733725257481,0.48902807,232.14,232.04,23.776884]
[1733725258491,6.2473,232.15,232.04,24.42314271]
[1733725258865,6.2473,232.15,232.07,20.0]
[1733725259201,6.2473,232.15,232.08,24.42301434]
[1733725260773,6.2473,232.15,232.09,0.12549]
[1733725261095,1.5258,232.17,232.11,20.0]
[1733725262183,6.639,232.2,232.12,24.42293645]
[1733725262895,6.639,232.2,232.12,23.776884]
[1733725263239,0.48902807,232.19,232.08,23.776884]
[1733725263374,0.48902807,232.19,232.1,23.776884]
[1733725263904,0.48902807,232.19,232.04,24.153354]
[1733725264071,0.12549,232.18,232.05,0.64617282]
[1733725264398,20.0,232.17,232.01,0.25098]
[1733725264578,0.48902807,232.16,232.02,0.64618543]
[1733725264895,0.48902807,232.18,232.03,0.12549]
[1733725265092,0.48902807,232.18,232.04,0.64614164]
[1733725265391,0.48902807,232.18,232.05,23.776884]
[1733725265697,1.5343,232.17,232.04,0.64616253]
[1733725265900,0.48902807,232.16,232.05,23.776884]
[1733725270087,0.12549,232.06,231.87,1.6004]
[1733725270300,20.48902807,232.06,231.88,0.64653266]
[1733725270479,0.12549,232.05,231.88,0.64653266]
[1733725270679,6.2332,232.04,231.88,0.64653266]
[1733725270918,0.48902807,232.03,231.88,0.64653266]
[1733725271218,1.5152,232.02,231.88,0.64653266]
[1733725271506,1.5152,232.02,231.82,16.09157083]
[1733725271507,0.48902807,232.01,231.84,0.25098]
[1733725271708,0.48902807,232.01,231.87,0.12549]
[1733725271893,0.48902807,232.01,231.88,23.902374]
[1733725272094,0.48902807,232.01,231.89,0.6466481]
[1733725272278,20.48902807,232.01,231.81,0.64667461]
[1733725272988,20.48902807,232.01,231.82,0.25098]
[1733725273196,20.48902807,232.01,231.84,0.25098]
[1733725273398,20.48902807,232.01,231.86,0.25098]
[1733725273601,20.48902807,232.01,231.87,0.646683]
[1733725273778,20.48902807,232.01,231.81,0.64673517]
[1733725273974,20.48902807,232.01,231.82,0.37647]
[1733725274215,20.48902807,232.01,231.84,0.37647]
[1733725274419,20.48902807,232.01,231.85,0.64672561]
[1733725274776,6.1663,232.0,231.86,23.776884]
[1733725275101,20.0,231.97,231.86,23.776884]
[1733725275415,0.48902807,231.96,231.78,0.64679829]
[1733725275924,0.48902807,231.96,231.79,0.25098]
[1733725276085,0.48902807,231.96,231.81,0.25098]
[1733725276286,0.48902807,231.96,231.83,0.12549]
[1733725276487,0.48902807,231.96,231.83,24.027864]
[1733725276678,0.48902807,231.96,231.85,23.776884]
[1733725276895,1.589,231.95,231.81,0.6467908]
[1733725277098,6.1663,231.93,231.81,0.6467908]
[1733725277411,6.1663,231.93,231.71,22.42147083]
[1733725277412,0.48902807,231.92,231.76,0.64691084]
[1733725277785,0.48902807,231.92,231.7,12.3769]
[1733725277786,20.0,231.9,231.71,0.64698063]
[1733725277981,0.48902807,231.89,231.72,0.25098]
[1733725278327,0.48902807,231.89,231.7,1.5872]
[1733725278328,0.48902807,231.89,231.74,0.25098]
[1733725278503,0.48902807,231.89,231.75,0.64700802]
[1733725279020,0.48902807,231.89,231.76,23.776884]
[1733725279219,6.6561,231.87,231.75,0.64700802]
[1733725279520,6.6561,231.87,231.77,0.64703153]
[1733725279680,6.6561,231.87,231.73,0.25098]
[1733725279878,6.6561,231.87,231.75,0.25098]
[1733725280126,6.6561,231.87,231.76,0.64689647]
[1733725280297,6.6561,231.87,231.77,0.25098]
[1733725280478,6.6561,231.87,231.83,23.776884]
[1733725281585,6.6561,231.87,231.75,20.0]
[1733725281784,6.6561,231.87,231.77,23.776884]
[1733725282435,0.48902807,231.86,231.77,23.776884]
[1733725282591,0.48902807,231.86,231.69,0.64701564]
[1733725283191,0.48902807,231.86,231.7,0.25098]
[1733725283538,6.6561,231.87,231.72,0.25098]
[1733725283702,0.48902807,231.86,231.74,0.25098]
[1733725283907,0.48902807,231.86,231.76,23.776884]
[1733725284596,0.48902807,231.86,231.77,0.64703094]
[1733725285229,0.48902807,231.86,231.76,23.776884]
[1733725287290,0.48902807,231.86,231.77,0.64702601]
[1733725287492,0.48902807,231.86,231.69,0.64700684]
[1733725287699,0.48902807,231.86,231.7,0.12549]
[1733725287998,0.48902807,231.86,231.72,23.776884]
[1733725288317,0.48902807,231.86,231.74,23.776884]
[1733725288521,20.0,231.84,231.74,23.776884]
[1733725288705,0.48902807,231.83,231.74,23.776884]
[1733725288886,0.48902807,231.83,231.72,23.776884]
[1733725289506,7.7211,231.82,231.72,23.776884]
[1733725289836,0.48902807,231.81,231.65,20.64720505]
[1733725291048,0.48902807,231.81,231.66,24.153354]
[1733725291207,0.48902807,231.81,231.7,23.776884]
[1733725291533,0.48902807,231.81,231.69,20.0]
[1733725291534,7.7211,231.82,231.72,23.776884]
[1733725291739,7.7211,231.82,231.73,0.64714234]
[1733725292301,7.7211,231.82,231.74,23.776884]
[1733725292505,7.7211,231.82,231.75,0.64704935]
[1733725292911,7.7211,231.82,231.74,23.776884]
[1733725293443,7.7211,231.82,231.69,20.0]
[1733725293444,20.0,231.78,231.64,0.5058462]
[1733725293608,0.48902807,231.77,231.64,0.5058462]
[1733725295337,0.48902807,231.77,231.65,0.25098]
[1733725295630,0.48902807,231.77,231.67,23.776884]
[1733725295834,20.0,231.78,231.67,23.776884]
[1733725296010,20.0,231.78,231.69,23.776884]
[1733725296534,0.48902807,231.8,231.69,23.776884]
[1733725297038,7.8596,231.81,231.71,23.776884]
[1733725297214,7.8596,231.81,231.73,23.776884]
[1733725298520,0.48902807,231.8,231.66,0.77261334]
[1733725298725,0.48902807,231.8,231.68,0.12549]
[1733725298912,0.48902807,231.8,231.69,23.776884]
[1733725302428,20.0,231.78,231.64,1.1531324]
[1733725302629,0.48902807,231.77,231.65,23.776884]
[1733725302830,0.48902807,231.77,231.67,23.776884]
[1733725304551,0.48902807,231.8,231.69,23.776884]
[1733725307739,0.48902807,231.8,231.66,0.6472734]
[1733725307942,0.48902807,231.8,231.67,23.776884]
[1733725308436,20.0,231.75,231.64,0.5058462]
[1733725308631,0.48902807,231.74,231.64,0.5058462]
[1733725309259,7.7428,231.73,231.64,0.5058462]
[1733725309467,20.0,231.7,231.54,0.64742888]
[1733725309630,0.48902807,231.69,231.54,0.64742888]
[1733725310458,0.48902807,231.69,231.55,0.64756181]
[1733725310632,0.48902807,231.69,231.52,23.902374]
[1733725310826,0.48902807,231.69,231.54,23.776884]
[1733725311139,0.48902807,231.69,231.56,23.776884]
[1733725311344,0.48902807,231.69,231.58,23.776884]
[1733725311852,0.48902807,231.69,231.59,0.64755356]
[1733725312257,0.48902807,231.72,231.6,23.776884]
[1733725312462,0.48902807,231.72,231.61,0.64743261]
[1733725313440,0.48902807,231.72,231.6,23.776884]
[1733725314063,20.0,231.7,231.6,23.776884]
[1733725314240,0.48902807,231.69,231.6,23.776884]
[1733725316174,0.48902807,231.69,231.55,0.64752148]
[1733725316461,6.3932,231.68,231.55,0.64752148]
[1733725316677,0.48902807,231.67,231.55,0.64752148]
[1733725317838,0.48902807,231.67,231.56,23.776884]
[1733725318650,20.0,231.63,231.51,0.64761223]
[1733725318849,20.0,231.63,231.41,155.7]
[1733725318850,20.0,231.63,231.43,16.09157083]
[1733725319040,20.0,231.63,231.45,0.25098]
[1733725319235,20.0,231.63,231.47,0.12549]
[1733725319435,20.0,231.63,231.49,0.12549]
[1733725319648,20.0,231.63,231.5,0.64766106]
[1733725319945,20.0,231.63,231.51,23.776884]
[1733725320145,20.0,231.63,231.53,23.776884]
[1733725320359,20.0,231.63,231.52,0.64766379]
[1733725320360,20.0,231.63,231.54,0.64766459]
[1733725320783,0.48902807,231.62,231.54,0.64766459]
[1733725320954,20.0,231.63,231.54,0.64766459]
[1733725321478,20.0,231.63,231.53,23.776884]
[1733725321653,20.0,231.63,231.54,0.64766417]
[1733725322849,20.0,231.63,231.42,16.09157083]
[1733725322850,0.48902807,231.62,231.46,0.12549]
[1733725323173,1.5805,231.6,231.48,23.776884]
[1733725323354,1.5805,231.6,231.4,18.32479678]
[1733725323355,0.48902807,231.59,231.5,23.776884]
[1733725323763,0.48902807,231.59,231.42,0.37647]
[1733725323984,2.06952807,231.6,231.45,0.12549]
[1733725324270,2.06952807,231.6,231.46,0.25098]
[1733725324464,2.06952807,231.6,231.47,0.64779842]
[1733725324777,20.0,231.58,231.47,0.64779842]
[1733725325158,6.24879,231.57,231.47,0.64779842]
[1733725325363,6.1233,231.57,231.41,0.64776123]
[1733725325561,6.1233,231.57,231.42,0.25098]
[1733725325887,6.1233,231.57,231.44,0.25098]
[1733725326057,6.1233,231.57,231.45,0.64777415]
[1733725326659,6.1233,231.57,231.46,23.776884]
[1733725326962,6.1233,231.57,231.47,0.64781303]
[1733725327169,2.09252807,231.56,231.44,23.776884]
[1733725327364,2.09252807,231.56,231.43,0.64782074]
[1733725327365,2.09252807,231.56,231.46,23.776884]
[1733725327675,2.09252807,231.56,231.47,0.64786869]
[1733725334761,2.09252807,231.56,231.46,23.776884]
[1733725335085,2.09252807,231.56,231.42,0.64790172]
[1733725335386,2.09252807,231.56,231.43,23.776884]
[1733725335595,2.09252807,231.56,231.45,23.776884]
[1733725335885,20.0,231.54,231.45,23.776884]
[1733725336098,0.48902807,231.53,231.45,23.776884]
[1733725337271,0.48902807,231.53,231.4,1.15378815]
[1733725337468,0.48902807,231.53,231.41,23.776884]
[1733725337666,0.48902807,231.53,231.43,23.776884]
[1733725338336,20.0,231.52,231.43,23.776884]
[1733725338795,20.0,231.52,231.43,0.64798178]
[1733725340272,0.48902807,231.54,231.43,0.64798178]
[1733725340473,20.0,231.52,231.43,0.64798178]
[1733725341175,20.0,231.52,231.44,23.776884]
[1733725341375,20.0,231.52,231.43,0.64798178]
[1733725341376,20.0,231.52,231.45,0.64791975]
[1733725342383,20.0,231.52,231.43,23.776884]
[1733725342571,20.0,231.52,231.44,0.64792751]
[1733725342782,0.48902807,231.54,231.44,0.64792751]
[1733725348691,0.48902807,231.54,231.4,0.5058462]
[1733725348692,20.0,231.52,231.4,0.5058462]
[1733725348888,0.48902807,231.51,231.42,23.776884]
[1733725349412,7.8762,231.5,231.42,23.776884]
[1733725349901,7.8762,231.5,231.41,23.776884]
[1733725350882,0.48902807,231.49,231.41,23.776884]
[1733725351483,7.8762,231.5,231.41,23.776884]
[1733725352881,0.48902807,231.49,231.41,23.776884]
[1733725354180,0.48902807,231.49,231.4,1.15387434]
[1733725354398,0.48902807,231.49,231.4,0.5058462]
[1733725354707,0.48902807,231.49,231.4,1.15390101]
[1733725360890,0.48902807,231.49,231.41,23.776884]
[1733725361212,7.8762,231.5,231.42,0.6479688]
[1733725362218,0.48902807,231.49,231.41,23.776884]
[1733725362589,0.48902807,231.49,231.4,0.5058462]
[1733725366606,7.8762,231.5,231.4,0.5058462]
[1733725366799,7.8762,231.5,231.42,23.776884]
[1733725367000,7.8762,231.5,231.43,0.64793887]
[1733725368022,7.8762,231.5,231.44,23.776884]
[1733725368195,7.8762,231.5,231.46,23.776884]
[1733725371819,7.8762,231.5,231.4,1.15377343]
[1733725372028,7.8762,231.5,231.41,0.64800351]
[1733725372511,0.48902807,231.49,231.4,0.5058462]
[1733725372899,7.8762,231.5,231.4,0.5058462]
[1733725373294,7.8762,231.5,231.41,0.64799023]
[1733725373992,7.8762,231.5,231.42,23.776884]
[1733725374418,7.8762,231.5,231.42,24.4248619]
[1733725375708,7.8762,231.5,231.42,23.776884]
[1733725377299,0.48902807,231.49,231.4,0.5058462]
[1733725377831,20.0,231.47,231.4,0.5058462]
[1733725377995,0.48902807,231.46,231.4,0.5058462]
[1733725378198,20.0,231.47,231.4,0.5058462]
[1733725378489,0.48902807,231.46,231.4,0.5058462]
[1733725379534,6.5622,231.45,231.4,0.5058462]
[1733725379728,0.48902807,231.44,231.4,0.5058462]
[1733725380298,6.5622,231.45,231.4,0.5058462]
[1733725381706,0.48902807,231.44,231.4,0.5058462]
[1733725382602,6.5622,231.45,231.4,0.5058462]
[1733725384323,0.48902807,231.44,231.4,0.5058462]
[1733725386635,0.48902807,231.44,231.31,23.902374]
[1733725386828,0.48902807,231.44,231.33,23.776884]
[1733725387129,0.48902807,231.44,231.35,23.776884]
[1733725388933,0.48902807,231.44,231.36,0.64820365]
[1733725390800,6.5622,231.45,231.37,23.776884]
[1733725391001,6.5622,231.45,231.38,0.64805982]
[1733725391433,6.5622,231.45,231.27,5.0]
[1733725391434,20.0,231.42,231.26,15.13671006]
[1733725391612,0.81033688,231.41,231.26,1.6229]
[1733725391839,20.0,231.42,231.27,0.73456587]
[1733725392020,0.810331,231.41,231.27,0.73456587]
[1733725392204,20.0,231.42,231.27,0.73456587]
[1733725392205,20.81033129,231.42,231.27,0.73456587]
[1733725392629,20.81033129,231.42,231.28,23.776884]
[1733725392930,20.81033129,231.42,231.29,0.48360465]
[1733725393143,20.0,231.42,231.29,0.48360465]
[1733725393363,0.81034724,231.41,231.29,0.48360465]
[1733725393503,6.5328,231.39,231.29,0.48360465]
[1733725393807,6.5328,231.39,231.24,0.25098]
[1733725394011,1.94557,231.38,231.25,0.48365805]
[1733725394206,2.50496297,231.38,231.25,0.48365805]
[1733725398541,2.37947297,231.38,231.26,20.25098]
[1733725398838,1.5691,231.38,231.27,24.2605206]
[1733725403049,2.37951148,231.38,231.27,24.2605206]